[Event "22nd Rochefort Festival Masters 2024"]
[Site "Rochefort"]
[Date "2024.02.21"]
[Round "7.2"]
[White "Eugene, Floryan"]
[Black "Romanov, Evgeny"]
[Result "1/2-1/2"]
[ECO "C16"]
[WhiteElo "2398"]
[BlackElo "2578"]
[Annotator "TA"]
[PlyCount "105"]
[EventDate "2024.02.18"]
[EventType "swiss"]
[EventCountry "FRA"]
[SourceTitle "playchess.com"]
[Source "ChessBase"]
[SourceQuality "1"]
[TimeControl "40/5400+30:1800+30"]

{[%evp 22,105,27,0,0,2,16,-70,-74,-75,-64,-71,-65,-71,-71,-68,-60,-57,-38,-46,-41,-45,-45,-42,0,0,0,-139,-8,-8,0,0,0,0,0,0,0,0,7,12,26,42,32,17,26,31,27,8,13,22,21,21,24,24,15,0,0,0,0,0,0,0,0,0,0,0,0,0,0,0,0,0,0,0,0,0,0,0,0,0,0,0,0,0,0,0]} 1. e4 {[%emt 1:31:00]} e6 {[%emt 1:31:00]} 2. d4 {[%emt 0:00:00]} d5 {[%emt 0:00:30]} 3. Nc3 {[%emt 0:01:00]} Bb4 {[%emt 0:00:30]} 4. e5 {[%emt 0:00:30]} b6 {[%emt 0:00:30]} 5. h4 {[%emt 0:00:30]} Qd7 {[%emt 0:00:30]} 6. h5 {[%emt 0:00:00] C16: French: 3 Nc3 Bb4 4 e5: Lines without ...c5.} h6 {[%emt 0:00:00]} 7. Qg4 {[%emt 0:00:00]} Bf8 {[%emt 0:01:00]} 8. Be3 {[%emt 0:00:00]} Ne7 {[%emt 0:00:30]} 9. O-O-O {[%emt 0:02:00]} a5 $146 {[%emt 0:00:00]} ({Predecessor:} 9... c6 10. f4 a5 11. Kb1 a4 12. Qf3 a3 13. b3 b5 14. g4 b4 15. Na4 Qa7 {1-0 Becker,M (2173)-Vogel,J (2196) OSKA op-A Netherlands 2003 (5)}) 10. f4 {[%emt 0:00:00]} Ba6 {[%emt 0:01:00]} 11. Qf3 {[%emt 0:01:00]} b5 {[%emt 0:00:30]} 12. g4 {[%emt 0:00:00]} b4 {[%emt 0:00:30]} 13. Nce2 {[%emt 0:01:00]} a4 {[%emt 0:00:30]} (13... Qa4 $2 14. Kb1 $18) 14. b3 {[%emt 0:00:30]} (14. Kb1 $1 $11) 14... c5 $15 {[%emt 0:00:30]} 15. Kd2 {[%emt 0:00:30]} Nec6 {[%emt 0:00:30]} 16. Ke1 {[%emt 0:00:30]} cxd4 {[%emt 0:00:30]} 17. Nxd4 {[%emt 0:00:00]} Nxd4 {[%emt 0:00:00]} 18. Bxd4 {[%emt 0:00:00]} Nc6 {[%emt 0:01:00]} 19. Be3 {[%emt 0:01:30]} Be7 {[%emt 0:00:30]} 20. Bxa6 {[%emt 0:00:00]} Rxa6 {[%emt 0:00:00]} 21. Qe2 $1 {[%emt 0:01:00]} Ra5 {[%emt 0:00:00]} 22. Nf3 {[%emt 0:00:30]} f6 {[%emt 0:01:30]} 23. Bb6 {[%emt 0:00:00]} Ra8 {[%emt 0:00:30]} 24. g5 {[%emt 0:01:00]} (24. exf6 $11 {remains equal.} Bxf6 25. Bc5) 24... hxg5 {[%emt 0:00:30]} (24... fxg5 $17 {Hoping for ...Qb7.} 25. fxg5 hxg5) 25. h6 $1 $11 {[%emt 0:00:30]} g4 {[%emt 0:00:30]} (25... axb3 {feels hotter.} 26. axb3 fxe5 27. hxg7 Rxh1+ 28. Kf2 Rh2+) 26. Ng1 $1 {[%emt 0:00:00]} Bf8 {[%emt 0:00:00]} 27. exf6 {[%emt 0:01:00]} gxf6 {[%emt 0:00:00]} 28. Qxg4 {[%emt 0:00:00]} axb3 {[%emt 0:00:00]} (28... Bxh6 $2 29. Rxh6 (29. Qg6+ Qf7 $18) 29... Rf8 30. Bc5 $18) 29. axb3 {[%emt 0:01:00]} e5 {[%emt 0:00:00]} 30. Qf3 {[%emt 0:00:30]} e4 {[%emt 0:01:13]} (30... Bxh6 31. Rxd5 Qe6 (31... Ra1+ $2 32. Kf2 $18) 32. f5 $16) (30... Rh7 {keeps more tension.} 31. Rxd5 Ra1+ 32. Ke2 Qf5) 31. Qh5+ {[%emt 0:00:00]} Qf7 {[%emt 0:00:02]} 32. Qxd5 {[%emt 0:00:00]} Qxd5 {[%emt 0:00:20]} ({Inferior is} 32... Rxh6 33. Qxc6+ Ke7 34. Qd7#) 33. Rxd5 {[%emt 0:01:30]} Ra1+ {[%emt 0:01:20]} (33... Bxh6 $2 34. Rdh5 Ra1+ 35. Kf2 $18 (35. Ke2 Rg8 $14)) 34. Ke2 {[%emt 0:00:00]} Rxh6 {[%emt 0:00:24]} (34... Bxh6 $2 {too greedy.} 35. Rd6 $18) 35. Rxh6 {[%emt 0:00:00]} Bxh6 {[%emt 0:00:01]} 36. Rd6 {[%emt 0:00:00]} Ne7 {[%emt 0:02:10]} 37. Rxf6 {[%emt 0:00:42]} Bg7 {[%emt 0:00:30]} 38. Re6 {[%emt 0:01:48]} Kf7 $1 {[%emt 0:00:30]} 39. Rxe4 {[%emt 0:00:00]} Nd5 {[%emt 0:00:00]} 40. Bd4 {[%emt 0:01:00]} Bxd4 {[%emt 0:00:00]} 41. Rxd4 {[%emt 0:29:23]} Nc3+ {[%emt 0:29:45]} 42. Kd3 {[%emt 0:01:37]} Rxg1 {[%emt 0:00:00]} 43. Rxb4 {[%emt 0:00:30]} Rg3+ {[%emt 0:00:00]} 44. Kd4 {[%emt 0:00:00]} Ne2+ {[%emt 0:00:00]} 45. Ke5 {[%emt 0:01:00]} Rc3 {[%emt 0:00:00]} 46. Rc4 {[%emt 0:00:30]} Rxc4 {[%emt 0:00:00]} 47. bxc4 {[%emt 0:00:30]} Ke7 {[%emt 0:04:45]} 48. c5 {[%emt 0:00:00]} Ng1 {[%emt 0:00:00]} 49. c6 {[%emt 0:01:00]} Nf3+ {[%emt 0:00:00]} 50. Kd5 {[%emt 0:00:00]} Nh4 {[%emt 0:01:30]} 51. c3 {[%emt 0:01:00]} (51. Kc5 $5 Kd8 $8 52. Kd6 $11) 51... Kd8 {[%emt 0:00:30]} 52. Kd6 {[%emt 0:00:00]} Kc8 {[%emt 0:00:00]} 53. c7 {[%emt 0:00:00]} 1/2-1/2

[Event "22nd Rochefort Festival Masters 2024"]
[Site "Rochefort"]
[Date "2024.02.21"]
[Round "7.3"]
[White "Laurent-Paoli, Pierre"]
[Black "Filip, Lucian-Ioan"]
[Result "0-1"]
[ECO "B43"]
[WhiteElo "2529"]
[BlackElo "2369"]
[Annotator "RC"]
[PlyCount "98"]
[EventDate "2024.02.18"]
[EventType "swiss"]
[EventCountry "FRA"]
[SourceTitle "playchess.com"]
[Source "ChessBase"]
[SourceQuality "1"]
[TimeControl "40/5400+30:1800+30"]

1. e4 {[%emt 1:31:00]} c5 {[%emt 0:04:04]} 2. Nf3 {[%emt 0:00:30]} e6 {[%emt 0:00:18]} 3. d4 {[%emt 0:00:00]} cxd4 {[%emt 1:27:38]} 4. Nxd4 {[%emt 0:00:00]} a6 {[%emt 0:00:30]} 5. Be2 {[%emt 0:01:30]} Nf6 {[%emt 0:00:30]} 6. Nc3 {[%emt 0:00:30]} Qc7 {[%emt 0:00:00]} 7. f4 {[%emt 0:00:30]} Bb4 {[%emt 0:00:00]} 8. e5 {[%emt 0:00:30]} Ne4 {[%emt 0:01:30]} 9. O-O {[%emt 0:00:30]} Nxc3 {[%emt 0:00:00]} 10. bxc3 {[%emt 0:00:00]} Bxc3 {[%emt 0:01:00]} 11. Rb1 {[%emt 0:01:00]} Nc6 {[%emt 0:00:30]} 12. Nxc6 {[%emt 0:00:30]} dxc6 {[%emt 0:00:30]} 13. Qd3 {[%emt 0:00:30]} Ba5 {[%emt 0:00:30]} 14. Qg3 {[%emt 0:00:30]} O-O {[%emt 0:00:30]} 15. Rb3 {[%emt 0:00:30]} Bb6+ {[%emt 0:00:30]} 16. Kh1 {[%emt 0:00:00]} Bc5 {[%emt 0:00:30]} 17. Qh4 {[%emt 0:01:00]} Be7 {[%emt 0:00:00]} 18. Qh5 {[%emt 0:00:00]} g6 {[%emt 0:01:00]} 19. Rg3 {[%emt 0:01:00]} Rd8 {[%emt 0:00:30]} 20. Bd3 {[%emt 0:00:30]} Rxd3 {[%emt 0:00:00]} 21. cxd3 {[%emt 0:00:00]} c5 {[%emt 0:01:00]} 22. Bb2 {[%emt 0:01:00]} Bf8 {[%emt 0:00:30]} 23. Qh4 {[%emt 0:00:00]} Be7 {[%emt 0:00:30]} 24. Qg4 {[%emt 0:01:00]} Qd8 {[%emt 0:00:30]} 25. Rh3 {[%emt 0:00:30]} Qd5 {[%emt 0:00:30]} 26. f5 {[%emt 0:00:30]} exf5 {[%emt 0:00:00]} 27. Qf4 {[%emt 0:00:30]} g5 {[%emt 0:00:00]} 28. Rg3 {[%emt 0:00:30]} Kf8 {[%emt 0:00:00]} 29. Rxg5 {[%emt 0:00:00]} Bxg5 {[%emt 0:00:00]} 30. Qxg5 {[%emt 0:01:00]} Be6 {[%emt 0:02:30]} 31. Bc1 {[%emt 0:00:30]} Rc8 {[%emt 0:00:30]} 32. d4 {[%emt 0:00:30]} Ke8 {[%emt 0:00:30]} 33. dxc5 {[%emt 0:00:00]} Rxc5 {[%emt 0:00:00]} 34. h3 {[%emt 0:01:00]} Qd3 {[%emt 0:00:00]} 35. Rg1 {[%emt 0:00:00]} Bd5 {[%emt 0:01:30]} 36. Kh2 {[%emt 0:01:00]} Rc2 {[%emt 0:00:30]} 37. Bf4 {[%emt 0:00:30]} Qe4 {[%emt 0:00:30]} 38. a3 {[%emt 0:00:00]} Kd7 {[%emt 0:00:30]} 39. e6+ {[%emt 0:00:00]} fxe6 {[%emt 0:00:30]} 40. Qg7+ {[%emt 0:00:00]} Kc6 {[%emt 0:00:30]} 41. Qc7+ {[%emt 0:07:36]} Kb5 {[%emt 0:00:00]} 42. a4+ {[%emt 0:24:54]} Kxa4 {[%emt 0:31:00]} 43. Ra1+ {[%emt 0:00:30]} Ba2 {[%emt 0:00:30]} 44. Qd7+ {[%emt 0:00:30]} b5 {[%emt 0:00:30]} 45. Rxa2+ {[%emt 0:00:00]} Rxa2 {[%emt 0:00:00]} 46. Qd1+ {[%emt 0:01:00]} Qc2 {[%emt 0:00:00]} 47. Qd4+ {[%emt 0:00:00]} b4 {[%emt 0:00:00]} 48. Qd7+ {[%emt 0:01:00]} Ka3 {[%emt 0:00:00]} 49. Qb7 {[%emt 0:00:00]} Qxg2+ {[%emt 0:00:00]} 0-1

[Event "22nd Rochefort Festival Masters 2024"]
[Site "Rochefort"]
[Date "2024.02.21"]
[Round "7.4"]
[White "Roshka, Yevgeniy"]
[Black "Boyer, Mahel"]
[Result "1/2-1/2"]
[ECO "D30"]
[WhiteElo "2474"]
[BlackElo "2428"]
[Annotator "TA"]
[PlyCount "146"]
[EventDate "2024.02.18"]
[EventType "swiss"]
[EventCountry "FRA"]
[SourceTitle "playchess.com"]
[Source "ChessBase"]
[SourceQuality "1"]
[TimeControl "40/5400+30:1800+30"]

{[%evp 46,146,-3,-13,0,0,0,0,15,0,0,0,16,0,0,0,0,0,0,-15,-18,-14,-14,-17,-18,-12,-16,-15,-8,-8,0,0,0,0,83,83,83,83,83,83,83,26,26,26,30,30,30,30,30,26,30,26,30,22,22,22,52,8,22,22,22,8,52,22,22,22,22,22,22,0,0,0,0,0,22,22,22,22,22,22,22,22,22,22,22,22,22,22,22,22,22,22,22,22,22,22,22,22,22,22,22,0,0]} 1. Nf3 {[%emt 0:10:57]} d5 {[%emt 0:00:47]} 2. d4 {[%emt 1:20:33]} e6 {[%emt 1:30:43]} 3. c4 {[%emt 0:00:00]} a6 {[%emt 0:00:00]} 4. Nbd2 {[%emt 0:01:00]} Nf6 {[%emt 0:00:00]} 5. g3 {[%emt 0:00:30]} c5 {[%emt 0:01:30]} 6. Bg2 {[%emt 0:00:00]} Nc6 {[%emt 0:00:30]} 7. O-O {[%emt 0:00:00]} h6 {[%emt 0:00:30]} 8. a3 {[%emt 0:01:30]} a5 {[%emt 0:00:30]} 9. h3 {[%emt 0:00:30]} a4 {[%emt 0:00:30]} 10. cxd5 {[%emt 0:00:30]} exd5 {[%emt 0:00:00]} 11. dxc5 {[%emt 0:00:00]} Bxc5 {[%emt 0:01:00]} 12. b4 {[%emt 0:01:00]} axb3 {[%emt 0:00:00]} 13. Nxb3 {[%emt 0:00:00]} Bb6 {[%emt 0:01:00]} 14. Qd3 {[%emt 0:01:00]} O-O {[%emt 0:00:30]} 15. Be3 {[%emt 0:00:30]} Bxe3 {[%emt 0:00:00]} 16. Qxe3 {[%emt 0:00:00]} Re8 {[%emt 0:01:00]} 17. Qd3 {[%emt 0:01:00]} Ne4 {[%emt 0:00:30]} 18. Nbd4 {[%emt 0:00:30]} Na5 {[%emt 0:00:30]} 19. Nd2 {[%emt 0:00:00]} Qf6 {[%emt 0:00:30]} 20. Qb5 {[%emt 0:01:00]} Bxh3 {[%emt 0:00:30]} 21. Nxe4 {[%emt 0:00:30]} dxe4 {[%emt 0:00:30]} 22. Bxh3 {[%emt 0:00:00]} Qxd4 {[%emt 0:00:30]} 23. Rfd1 {[%emt 0:01:00]} Qf6 {[%emt 0:00:30]} 24. Rac1 {[%emt 0:00:30]} e3 {[%emt 0:00:00]} 25. f4 {[%emt 0:00:00]} Nc6 26. Bd7 {[%emt 0:01:00]} Qg6 {[%emt 0:01:30]} (26... Nd4 $2 27. Rxd4 (27. Qxb7 $2 Nxe2+ 28. Kh2 Qg6 $19) 27... Qxd4 28. Bxe8 $18) 27. Kg2 {[%emt 0:00:30]} Qe4+ {[%emt 0:00:00]} 28. Kg1 {[%emt 0:00:30]} Qg6 {[%emt 0:00:00]} (28... Nd4 $2 29. Rxd4 Qxd4 30. Bxe8 $18) 29. Kg2 {[%emt 0:00:30]} Qe4+ {[%emt 0:00:00]} 30. Kg1 {[%emt 0:00:30]} Re7 {[%emt 0:02:00]} (30... Nd4 $2 31. Rxd4 Qxd4 32. Bxe8 $18) 31. Qxb7 {[%emt 0:00:00]} Nd4 {[%emt 0:00:00]} (31... Rxa3 $2 32. Qc8+ $18 (32. Qxc6 Qxc6 33. Bxc6 Ra5 $18) (32. Rxc6 Kh7 $18) (32. Bxc6 Qe6 $18) (32. Qxc6 Qxc6 33. Bxc6 Ra2 $18) (32. Rxc6 Kh7 $18) (32. Bxc6 Qe6 $18)) 32. Qxe4 {[%emt 0:01:00]} Nxe2+ {[%emt 0:00:00]} (32... Rxe4 33. Kf1 $14) 33. Kg2 {[%emt 0:00:00]} Rxe4 {[%emt 0:00:00]} 34. Bc6 {[%emt 0:01:00]} Rc8 {[%emt 0:02:00]} (34... Rxa3 35. Rd8+ (35. Bxe4 g5 $18) (35. Bxe4 g5 $18)) 35. Bxe4 {[%emt 0:00:00]} Nxc1 {[%emt 0:00:00]} ({Inferior is} 35... Rxc1 36. Rd8#) 36. a4 {[%emt 0:00:00]} e2 {[%emt 0:00:25]} 37. Re1 {[%emt 0:00:00]} Rc4 {[%emt 0:01:05]} 38. Bf3 {[%emt 0:00:00]} g6 {[%emt 0:00:00]} 39. a5 {[%emt 0:00:00]} Nb3 {[%emt 0:01:00] [#]} (39... Nd3 $11 40. Rxe2 Ra4) 40. Bd5 $1 $16 {[%emt 0:00:00]} ({But not} 40. Rxe2 Nxa5 41. Re8+ Kg7 $15) (40. Bxe2 Ra4 $11) 40... Nxa5 {[%emt 0:00:00]} 41. Bxc4 {[%emt 0:01:57]} Nxc4 {[%emt 0:30:01]} 42. Rxe2 {[%emt 0:00:05]} ({Much weaker is} 42. Kf2 h5 $11) 42... h5 {[%emt 0:00:11] [#]} 43. f5 {[%emt 0:32:28]} (43. Kf3 $1 $16) 43... Kg7 $11 {[%emt 0:00:00]} 44. Kf3 {[%emt 0:00:30]} Nd6 {[%emt 0:00:00]} 45. fxg6 {[%emt 0:00:00]} Kxg6 {[%emt 0:02:48]} 46. Rd2 {[%emt 0:00:00]} Nf5 {[%emt 0:00:00]} 47. Rd8 {[%emt 0:01:30]} f6 {[%emt 0:01:00]} 48. Kf4 {[%emt 0:00:00]} Ng7 {[%emt 0:00:30]} 49. Ke4 {[%emt 0:01:00]} Nf5 {[%emt 0:00:30]} 50. Rd3 {[%emt 0:00:00]} Ne7 {[%emt 0:00:00]} 51. Ra3 {[%emt 0:00:00]} Nf5 {[%emt 0:00:00]} 52. Rc3 {[%emt 0:01:30]} Ne7 {[%emt 0:00:00]} 53. Rc5 {[%emt 0:00:00]} Ng8 {[%emt 0:02:00]} 54. Kd5 {[%emt 0:01:00]} Kf5 {[%emt 0:00:00]} 55. Kd6+ {[%emt 0:00:00]} Kg4 {[%emt 0:00:00]} 56. Ke6 {[%emt 0:00:00]} Nh6 {[%emt 0:01:30]} 57. Rc3 {[%emt 0:01:30]} f5 {[%emt 0:00:30]} 58. Kf6 {[%emt 0:00:00]} f4 {[%emt 0:00:00]} 59. gxf4 {[%emt 0:00:00]} Kxf4 {[%emt 0:00:00]} (59... h4 $5) 60. Kg6 {[%emt 0:00:00]} Ng4 {[%emt 0:00:00]} 61. Rc4+ {[%emt 0:02:00]} Ke5 {[%emt 0:00:00]} 62. Kxh5 {[%emt 0:00:00]} Ne3 {[%emt 0:02:30]} 63. Rc8 {[%emt 0:00:00]} Nf5 {[%emt 0:00:00]} 64. Re8+ {[%emt 0:00:00]} Kd5 {[%emt 0:01:00]} 65. Kg5 {[%emt 0:00:00]} Nd6 {[%emt 0:00:00]} 66. Re1 {[%emt 0:00:00]} Nb5 {[%emt 0:00:00]} 67. Kf4 {[%emt 0:03:00]} Nd6 {[%emt 0:00:00]} 68. Re5+ {[%emt 0:00:00]} Kd4 {[%emt 0:00:00]} 69. Ra5 {[%emt 0:00:00]} Nc4 {[%emt 0:00:00]} 70. Ra1 {[%emt 0:00:00]} Kd5 {[%emt 0:00:00]} 71. Rd1+ {[%emt 0:00:00]} Ke6 {[%emt 0:00:00]} 72. Ke4 {[%emt 0:00:00]} Nd6+ {[%emt 0:00:00]} 73. Rxd6+ {[%emt 0:00:00]} Kxd6 {[%emt 0:00:00]} 1/2-1/2

[Event "22nd Rochefort Festival Masters 2024"]
[Site "Rochefort"]
[Date "2024.02.21"]
[Round "7.5"]
[White "Larkin, Vladyslav"]
[Black "Favarel, Julien"]
[Result "1/2-1/2"]
[ECO "A45"]
[WhiteElo "2484"]
[BlackElo "2312"]
[Annotator "TA"]
[PlyCount "108"]
[EventDate "2024.02.18"]
[EventType "swiss"]
[EventCountry "FRA"]
[SourceTitle "playchess.com"]
[Source "ChessBase"]
[SourceQuality "1"]
[TimeControl "40/5400+30:1800+30"]

{[%evp 34,108,-40,-58,-58,-51,-47,-51,-88,-39,76,70,70,27,60,37,37,-5,-20,-6,0,0,0,0,0,-30,-39,-30,0,0,-15,-14,-13,-40,-45,-40,0,-70,-65,-45,-54,-59,-73,-98,0,0,0,0,0,0,0,0,0,0,0,0,0,0,0,0,0,0,0,0,0,0,0,0,0,0,0,0,0,0,0,0,0]} 1. d4 {[%emt 0:16:43]} Nf6 {[%emt 0:00:10]} 2. Bf4 {[%emt 0:00:08]} g6 {[%emt 1:31:20]} 3. e3 {[%emt 0:00:31]} Bg7 {[%emt 0:00:00]} 4. h3 {[%emt 0:00:07]} O-O {[%emt 0:00:00]} 5. Nd2 {[%emt 1:15:31]} c5 {[%emt 0:00:00]} 6. c3 {[%emt 0:00:30] A45: Trompowsky Attack.} b6 {[%emt 0:00:00]} 7. a4 {[%emt 0:00:30]} Nc6 {[%emt 0:00:00]} 8. Ngf3 {[%emt 0:00:30]} Bb7 {[%emt 0:00:00]} 9. Bh2 {[%emt 0:00:00]} d6 {[%emt 0:00:00]} 10. Be2 {[%emt 0:01:00]} cxd4 $146 {[%emt 0:00:00]} ({Predecessor:} 10... e5 11. dxc5 bxc5 12. Nc4 e4 13. Nfd2 d5 14. Nd6 Rb8 15. Bb5 Ba8 16. O-O Qe7 17. Bxc6 Bxc6 {½-½ Mitkov,N (2535)-Nestorovic,N (2424) FRM-chT Struga 2007 (4)}) 11. exd4 {[%emt 0:00:30]} e5 {[%emt 0:04:30]} 12. dxe5 {[%emt 0:00:00]} dxe5 {[%emt 0:00:00]} 13. Nc4 {[%emt 0:01:00]} e4 {[%emt 0:00:00]} 14. Nfd2 {[%emt 0:00:30]} Ne7 {[%emt 0:01:30]} 15. a5 {[%emt 0:00:30]} Nf5 {[%emt 0:00:30]} 16. a6 {[%emt 0:00:00]} Bd5 {[%emt 0:00:00]} 17. Nf1 {[%emt 0:01:00]} Bxc4 {[%emt 0:01:00]} 18. Bxc4 {[%emt 0:00:30]} Qc8 {[%emt 0:00:30]} 19. Qe2 $1 {[%emt 0:00:30]} Bh6 {[%emt 0:00:30]} 20. Ne3 {[%emt 0:00:30]} Bxe3 {[%emt 0:00:00]} 21. fxe3 {[%emt 0:00:30]} Nh5 {[%emt 0:01:00] [#]} (21... Qc5 $15) 22. Kf2 $1 $16 {[%emt 0:00:30]} Qd8 {[%emt 0:00:30]} 23. Rhe1 {[%emt 0:00:00]} Qh4+ {[%emt 0:00:00]} 24. Kg1 {[%emt 0:00:00]} Rad8 {[%emt 0:01:00]} 25. Bb5 {[%emt 0:01:30]} Nhg3 {[%emt 0:00:30]} 26. Qf2 {[%emt 0:00:00]} (26. Bxg3 {simplifies} Qxg3 27. Bc6 Qe5 28. Ra4) 26... Rd6 {[%emt 0:00:00]} 27. Rad1 {[%emt 0:01:00]} Rfd8 $1 {[%emt 0:00:00]} 28. Rxd6 {[%emt 0:00:00]} Rxd6 {[%emt 0:00:00]} 29. Bc4 {[%emt 0:00:00]} h5 {[%emt 0:02:00]} 30. Bb3 {[%emt 0:00:45]} Qg5 {[%emt 0:00:30]} 31. Bxg3 {[%emt 0:01:15]} Qxg3 {[%emt 0:00:00]} 32. Qxg3 {[%emt 0:00:00]} Nxg3 {[%emt 0:00:00]} 33. Rd1 {[%emt 0:00:00]} Rxd1+ {[%emt 0:00:02]} 34. Bxd1 {[%emt 0:00:00]} Kf8 {[%emt 0:00:41]} 35. Bb3 {[%emt 0:00:32]} (35. Bc2 $11) 35... Ke7 $15 {[%emt 0:01:47]} 36. Bd5 {[%emt 0:00:21]} h4 {[%emt 0:00:00]} 37. Kf2 {[%emt 0:00:05]} f5 {[%emt 0:01:00]} 38. b4 {[%emt 0:01:17] [#]} Kd6 {[%emt 0:00:30]} (38... Nh5 $1 $17 39. Bb7 Kd6) 39. Bf7 $11 {[%emt 0:00:19]} g5 {[%emt 0:00:00]} 40. c4 {[%emt 0:00:45]} Nh1+ {[%emt 0:00:00]} 41. Kg1 {[%emt 0:30:46]} Ng3 {[%emt 0:01:22]} 42. Kf2 {[%emt 0:01:25]} Kd7 {[%emt 0:17:42]} 43. Bg6 {[%emt 0:00:00]} f4 {[%emt 0:04:03]} 44. Bh7 {[%emt 0:00:00]} Kd6 {[%emt 0:03:24]} 45. Bg6 {[%emt 0:01:30]} Kc7 {[%emt 0:02:09]} 46. Bh7 {[%emt 0:00:00]} Kd7 {[%emt 0:00:08]} 47. Bg6 {[%emt 0:00:00]} Kd6 {[%emt 0:00:06]} 48. Bh7 {[%emt 0:00:00]} Ke5 {[%emt 0:06:06]} 49. c5 {[%emt 0:00:00]} b5 {[%emt 0:00:00]} (49... bxc5 $2 50. b5 (50. exf4+ Kd6 $18) 50... fxe3+ 51. Kxe3 $18) 50. Bg6 {[%emt 0:00:00]} Nf5 {[%emt 0:01:00]} 51. Bxf5 {[%emt 0:00:00]} Kxf5 {[%emt 0:00:00]} 52. Ke2 {[%emt 0:00:00]} (52. c6 Ke6 53. Ke2 Kd6 54. exf4 gxf4 55. c7 Kxc7 56. Kd1 Kd6 (56... Kb6 {gets mated.} 57. Ke2 Kc6 58. Kd2 Kd5 59. Kc3 Ke5 60. Kd2 Kd4 61. Ke2 Kc3 62. Ke1 Kd3 63. Kf1 Ke3 64. Ke1 f3 65. gxf3 exf3 66. Kf1 f2 67. Kg2 Ke2 68. Kh1 f1=Q+ 69. Kh2 Qa1 70. Kg2 Qg7+ 71. Kh2 Kf3 72. Kh1 Qg2#) 57. Ke1 Ke5 58. Kf2 Kd4 59. Ke2 Kc3 60. Ke1 Kd3 (60... Kxb4 61. g4 fxg3 62. Ke2 Kc3 63. Ke3 b4 64. Kf4 g2 65. Kg4 g1=Q+ 66. Kf5 e3 67. Kf4 e2 68. Kf5 e1=Q 69. Kf6 Qc5 70. Kg6 Qee7 71. Kh6 Qcg5#) 61. Kf2 Kd2 62. g4 fxg3+ (62... e3+ 63. Kf3 e2 64. g5 e1=Q 65. Kxf4 Qe3+ 66. Kf5 Qxh3+ 67. Kf6 Qg3 68. Kg7 h3 69. Kh6 h2 70. Kg7 Qxg5+ 71. Kf7 h1=Q 72. Ke8 Qh7 73. Kf8 Qhg8#) 63. Kg2 e3 64. Kf3 e2 65. Kf4 e1=Q (65... e1=R 66. Kg4 g2 67. Kf5 g1=Q 68. Kf6 Qf2+ 69. Kg5 Rg1+ 70. Kh5 Qf7+ 71. Kxh4 Qh7#) (65... g2 66. Kg5 e1=Q 67. Kf5 Qe7 68. Kg4 g1=Q+ 69. Kf4 Qgg5+ 70. Kf3 Qg3#) 66. Kg5 g2 67. Kf4 Qe6 (67... g1=R 68. Kf5 Qe7 69. Kf4 Rg5 70. Kf3 Qe3#) 68. Kg5 g1=Q+ (68... g1=R+ $2 69. Kf4 Kd3 70. Kf3 Qf7#) 69. Kh5 Qgg6+ 70. Kxh4 Qef6#) 52... Ke5 {[%emt 0:00:00]} 53. Kf2 {[%emt 0:00:00]} Kd5 {[%emt 0:00:00]} 54. Ke2 {[%emt 0:00:00]} Ke5 {[%emt 0:00:00]} ({Wrong is} 54... Kc4 $2 55. c6 Kxb4 56. c7 $18) 1/2-1/2

[Event "22nd Rochefort Festival Masters 2024"]
[Site "Rochefort"]
[Date "2024.02.22"]
[Round "8.1"]
[White "Sivuk, Vitaly"]
[Black "Romanov, Evgeny"]
[Result "1-0"]
[ECO "D35"]
[WhiteElo "2502"]
[BlackElo "2578"]
[Annotator "TA"]
[PlyCount "75"]
[EventDate "2024.02.18"]
[EventType "swiss"]
[EventCountry "FRA"]
[SourceTitle "playchess.com"]
[Source "ChessBase"]
[SourceQuality "1"]
[TimeControl "40/5400+30:1800+30"]

{[%evp 13,75,4,23,20,26,25,30,38,30,38,41,22,26,13,16,29,49,37,61,40,46,42,52,58,49,33,31,28,32,8,38,43,48,43,45,45,71,58,80,97,108,92,104,108,110,104,104,113,373,208,439,432,422,149,468,388,388,382,768,680,795,898,29993,29994]} 1. d4 {[%emt 1:31:00]} Nf6 {[%emt 0:03:24]} 2. c4 {[%emt 0:00:00]} e6 {[%emt 0:00:11]} 3. Nc3 {[%emt 0:00:00]} d5 {[%emt 0:00:09]} 4. cxd5 {[%emt 0:00:00]} exd5 {[%emt 0:00:10]} 5. Bg5 {[%emt 0:02:00]} Be7 {[%emt 0:00:48]} 6. e3 {[%emt 0:00:30]} O-O {[%emt 0:00:10]} 7. Bd3 {[%emt 0:00:00]} Re8 {[%emt 1:29:08]} 8. Nf3 {[%emt 0:01:00]} h6 {[%emt 0:00:00]} 9. Bf4 {[%emt 0:00:30]} c5 {[%emt 0:00:00]} 10. dxc5 {[%emt 0:00:30] White has an edge.} Bxc5 {[%emt 0:00:00]} 11. O-O {[%emt 0:00:30]} Nc6 {[%emt 0:00:00]} 12. h3 {[%emt 0:00:30]} a6 {[%emt 0:00:00]} 13. Rc1 {[%emt 0:00:30]} Ba7 {[%emt 0:00:00]} 14. Ne2 {[%emt 0:00:30]} Bd7 {[%emt 0:03:30]} 15. Qb3 {[%emt 0:00:30]} b5 {[%emt 0:00:30]} 16. Ned4 {[%emt 0:00:30] White is more active.} Rc8 {[%emt 0:00:30]} 17. Nxc6 {[%emt 0:00:00]} Bxc6 {[%emt 0:00:30]} 18. Bf5 {[%emt 0:01:00]} Bd7 {[%emt 0:00:30]} 19. Rxc8 {[%emt 0:00:30]} Qxc8 {[%emt 0:00:00]} 20. Bxd7 {[%emt 0:00:00]} Qxd7 {[%emt 0:01:00]} 21. Rd1 {[%emt 0:01:00]} Rd8 {[%emt 0:00:30]} 22. Be5 {[%emt 0:00:30]} Ne4 {[%emt 0:00:30]} 23. Rc1 {[%emt 0:00:30]} Bc5 {[%emt 0:00:30]} 24. Qc2 {[%emt 0:00:30]} Qe6 {[%emt 0:00:30]} 25. a3 {[%emt 0:00:30]} (25. Bd4 $5 Bxd4 26. Nxd4 $14) 25... g5 {[%emt 0:00:30]} 26. b4 {[%emt 0:00:00]} Bf8 {[%emt 0:00:30]} 27. Qc6 {[%emt 0:01:00]} Qf5 {[%emt 0:00:30]} 28. Rc2 {[%emt 0:00:30] Black is weak on the dark squares} Nd6 {[%emt 0:00:30]} 29. Bxd6 $1 {[%emt 0:00:00]} Rxd6 {[%emt 0:00:30]} 30. Qc8 {[%emt 0:01:00]} Qd3 {[%emt 0:00:30][%mdl 8192]} (30... Qxc8 $16 31. Rxc8 f5) 31. Nd4 {[%emt 0:00:30]} (31. Ne5 $142 Qh7 32. Rc7) 31... Rf6 $2 {[%emt 0:00:30]} (31... Qxa3 {keeps fighting.} 32. Qe8 Re6 33. Nxe6 Qa1+ 34. Kh2 Qe5+ 35. g3 Qxe6 36. Qxe6 (36. Rc8 Qxe8 37. Rxe8 Kg7 $18) 36... fxe6) 32. Qd8 $18 {[%emt 0:00:30][%csl LRd5,LRf6] White wants to mate with Rc8.} Kg7 {[%emt 0:00:30] [#]} 33. g4 $2 $40 {[%emt 0:00:30][%mdl 128] White is out for blood.} (33. Qxd5 Qxa3 34. Nf5+ Kg8 $16 (34... Kg6 $2 35. g4 $18)) (33. Rc8 $1 $18 Qb1+ (33... Qd1+ $2 34. Kh2 $18) 34. Kh2 Bd6+ 35. f4) 33... Qxa3 $2 {[%emt 0:00:30][%mdl 8192] Loses the game.} (33... Bd6 $16) 34. Rc8 {[%emt 0:00:30]} ({Weaker is} 34. Qxd5 Qxb4 35. Nf5+ Kg8 $18) 34... Qxb4 {[%emt 0:00:00] ( -> ...Qe1+)} 35. Nf5+ {[%emt 0:00:00]} (35. Qxd5 {gets mated.} Qe1+ 36. Kh2 Rxf2+ (36... Qxf2+ 37. Qg2 Bd6+ 38. Kh1 Qe1+ 39. Qg1 Rf1 40. Kg2 Rxg1+ 41. Kf3 Qg3+ 42. Ke4 Qe5+ 43. Kd3 Rd1+ 44. Ke2 Rxd4 45. Rg8+ Kxg8 46. h4 Qh2+ 47. Kf3 Qg3+ 48. Ke2 Qg2+ 49. Ke1 Bg3#) 37. Kg3 Qg1+) 35... Rxf5 $2 {[%emt 0:00:00]} (35... Kg6 36. Qxf8 Qxf8 37. Rxf8 Kh7) 36. gxf5 {[%emt 0:00:00][%cal Bg4f5,Bf5f6][%mdl 32]} a5 37. f6+ {[%emt 0:00:00]} Kg8 38. Qe7 {[%emt 0:02:00] Weighted Error Value: White=0.22 (precise) /Black=0.78.  Loses game:     	---       	Black=2      Missed win:     	White=1     	---        Mistake:       	White=1     	Black=2      Inaccurate:     	---       	Black=2      OK:         	White=12    	Black=7      Best:        	White=2     	Black=2      Strong:       	White=1     	---} 1-0